bitfinex-derivatives/quotes_ETHF0:USTF0_20250830
["timestamp","ask_amount","ask_price","bid_price","bid_amount"]
[1756572839454,3.2078,4368.6,4367.3,5.49643334]
[1756572839656,0.2963,4368.4,4367.3,5.49643334]
[1756572839855,0.2963,4368.5,4367.3,5.49643334]
[1756572840060,3.2078,4368.6,4367.3,5.49643334]
[1756572840061,0.2963,4368.3,4367.3,5.49643334]
[1756572840355,0.2963,4368.5,4367.3,5.49643334]
[1756572840558,0.2963,4368.3,4367.3,5.49643334]
[1756572840857,0.2963,4368.5,4367.3,5.49643334]
[1756572841057,0.57657785,4368.4,4367.3,5.49643334]
[1756572841355,0.4874,4367.4,4367.3,5.26643334]
[1756572841556,0.4874,4367.4,4367.3,3.4378]
[1756572842463,0.4874,4367.4,4367.3,0.23]
[1756572842663,0.4874,4367.0,4366.9,32.976]
[1756572842861,0.4874,4367.0,4366.9,33.206]
[1756572843660,0.4874,4366.9,4366.8,3.2078]
[1756572843863,0.4874,4366.9,4366.8,3.4378]
[1756572844965,0.4874,4366.9,4366.8,0.23]
[1756572846259,3.2078,4367.5,4366.1,3.2078]
[1756572846459,0.4874,4366.2,4366.1,3.2078]
[1756572846664,0.4874,4366.2,4366.1,3.4378]
[1756572850472,0.4874,4366.2,4366.1,3.2078]
[1756572850672,0.4874,4366.2,4366.1,3.4378]
[1756572851671,0.4874,4366.2,4366.1,0.23]
[1756572851873,0.3017,4366.9,4366.1,0.23]
[1756572854871,0.1876,4366.2,4366.1,0.23]
[1756572855082,0.3017,4366.9,4365.5,32.976]
[1756572855271,0.4893,4365.7,4365.6,0.23]
[1756572856472,3.2078,4367.0,4365.6,0.23]
[1756572856473,0.3017,4366.9,4365.6,0.23]
[1756572856672,0.53073,4366.9,4365.6,0.23]
[1756572856873,0.3017,4366.9,4365.6,0.23]
[1756572859480,0.4893,4366.1,4366.0,3.2078]
[1756572859680,0.4893,4366.1,4366.0,3.4378]
[1756572862579,0.3017,4366.1,4366.0,3.4378]
[1756572862982,0.4893,4366.1,4366.0,3.4378]
[1756572875993,3.2078,4366.3,4365.4,5.26643334]
[1756572876296,0.4893,4365.5,4365.4,3.2078]
[1756572876491,0.4893,4365.5,4365.4,3.4378]
[1756572877495,0.3017,4365.5,4365.4,3.4378]
[1756572877696,3.2078,4366.3,4365.4,3.4378]
[1756572877897,0.305,4366.2,4365.4,3.4378]
[1756572878090,3.2078,4366.3,4365.4,3.4378]
[1756572879192,0.305,4366.2,4365.4,3.4378]
[1756572879401,3.2078,4366.3,4365.4,3.4378]
[1756572880488,0.305,4366.2,4365.4,3.4378]
[1756572880691,3.2078,4366.3,4365.4,3.4378]
[1756572880996,3.43685001,4366.3,4365.4,3.4378]
[1756572881507,0.305,4366.2,4365.4,3.4378]
[1756572882098,3.43685001,4366.3,4365.4,3.4378]
[1756572882099,3.2078,4366.3,4365.4,3.4378]
[1756572882299,3.43685001,4366.3,4365.4,3.4378]
[1756572882897,0.305,4366.2,4365.4,3.4378]
[1756572883201,3.43685001,4366.3,4365.4,3.4378]
[1756572883702,0.5035,4365.5,4365.4,3.2078]
[1756572883898,0.5035,4365.5,4365.4,3.4378]
[1756572885299,0.5035,4365.5,4365.4,3.2078]
[1756572885603,0.5035,4365.5,4365.4,3.4378]
[1756572886904,0.5035,4365.5,4365.4,3.2078]
[1756572887201,0.5035,4365.5,4365.4,3.4378]
[1756572895907,3.2078,4366.3,4365.4,3.4378]
[1756572896111,0.5035,4366.1,4365.4,3.4378]
[1756572896311,0.1985,4366.1,4365.4,3.4378]
[1756572896611,0.42756,4366.0,4365.4,3.4378]
[1756572896813,0.1985,4366.1,4365.4,3.4378]
[1756572897013,0.22905001,4366.2,4365.4,3.4378]
[1756572897014,0.305,4365.9,4365.4,3.4378]
[1756572897211,0.305,4366.0,4365.4,3.4378]
[1756572897409,0.5035,4366.0,4365.4,3.4378]
[1756572898113,0.305,4365.9,4365.4,3.4378]
[1756572898305,0.305,4366.0,4365.4,3.4378]
[1756572898505,0.5035,4366.0,4365.4,3.4378]
[1756572900216,0.305,4366.0,4365.4,3.4378]
[1756572900512,3.2078,4366.3,4365.4,3.4378]
[1756572900912,3.5128,4366.3,4365.4,3.4378]
[1756572901404,3.7113,4366.3,4365.4,3.66685]
[1756572901603,3.7113,4366.3,4365.4,3.85009]
[1756572901807,3.7113,4366.3,4365.4,4.07914]
[1756572902703,3.7113,4366.3,4365.4,3.66685]
[1756572902904,0.305,4366.2,4365.4,3.66685]
[1756572903112,0.5035,4366.2,4365.4,3.66685]
[1756572904521,0.5035,4366.2,4365.4,4.07914]
[1756572906219,0.5035,4366.2,4365.5,0.22905]
[1756572906718,0.5035,4366.2,4365.4,3.85009]
[1756572906908,0.5035,4366.2,4365.5,0.22905]
[1756572907312,0.3002,4366.1,4365.4,3.85009]
[1756572907607,0.3002,4366.1,4365.5,0.22905]
[1756572907810,0.4924,4366.1,4365.4,4.07914999]
[1756572908216,0.4924,4366.1,4365.4,3.66685999]
[1756572909318,0.4924,4366.1,4365.4,4.07914999]
[1756572909818,0.4924,4366.1,4365.4,3.85009]
[1756572910024,0.4924,4366.1,4365.4,3.4378]
[1756572910212,0.1922,4366.1,4365.4,3.4378]
[1756572910524,0.4924,4366.0,4365.4,3.4378]
[1756572915822,0.4924,4366.0,4365.4,3.85009]
[1756572916121,0.4924,4366.0,4365.4,3.4378]
[1756572917721,0.1922,4366.0,4365.4,3.4378]
[1756572917917,0.3002,4366.8,4365.4,3.4378]
[1756572918117,0.22903,4366.8,4365.4,3.4378]
[1756572918320,0.79907272,4366.7,4365.4,3.85009]
[1756572918616,0.22904,4366.7,4365.4,3.85009]
[1756572918810,0.22904,4366.6,4365.4,3.85009]
[1756572919017,0.22903,4366.8,4365.5,0.64130999]
[1756572919317,0.3002,4366.6,4365.5,0.22902999]
[1756572920322,0.3002,4366.6,4365.5,0.64130999]
[1756572920520,3.2078,4366.9,4365.5,0.64130999]
[1756572920521,0.3002,4366.8,4365.5,0.64130999]
[1756572920821,0.57056204,4366.7,4365.5,0.64130999]
[1756572921025,0.3002,4366.6,4365.5,0.64130999]
[1756572921415,3.2078,4366.9,4365.4,3.4378]
[1756572921416,3.2078,4366.9,4365.9,3.2078]
[1756572921614,0.3002,4366.8,4366.0,0.23]
[1756572921816,0.4924,4366.8,4366.0,0.23]
[1756572923421,0.4924,4366.7,4366.4,3.2078]
[1756572923622,3.2078,4367.4,4366.5,0.23]
[1756572923623,0.3002,4366.6,4366.5,0.23]
[1756572924017,3.2078,4367.4,4366.5,0.23]
[1756572924226,0.3002,4367.3,4366.5,0.23]
[1756572924418,0.1922,4366.6,4366.5,0.23]
[1756572924618,0.4924,4366.6,4366.5,0.23]
[1756572929026,0.4924,4366.6,4366.0,0.41223]
[1756572929027,0.1922,4366.6,4366.0,0.41223]
[1756572929325,0.4924,4366.6,4366.1,0.23]
[1756572929627,3.2078,4367.4,4366.1,0.23]
[1756572929628,0.3002,4366.5,4366.1,0.45902999]
[1756572929828,0.1922,4366.2,4366.1,0.23]
[1756572930127,0.4924,4366.2,4366.1,0.23]
[1756572934529,0.4924,4366.0,4365.9,3.2078]
[1756572934730,0.4924,4366.0,4365.9,3.4378]
[1756572939238,0.2866,4366.8,4365.9,3.4378]
[1756572939436,3.2078,4366.9,4365.9,3.4378]
[1756572939741,0.1973,4366.8,4366.1,0.41222]
[1756572939940,0.1973,4366.7,4366.2,0.23]
[1756572940237,0.4839,4366.8,4366.2,0.23]
[1756572942639,0.4839,4366.8,4366.7,3.2078]
[1756572942839,0.4839,4366.8,4366.7,3.4378]
[1756572947138,3.2078,4367.7,4366.7,3.4378]
[1756572947337,0.79960227,4367.6,4366.7,3.4378]
[1756572947639,0.22898001,4367.6,4366.7,3.4378]
[1756572947840,0.2866,4367.6,4366.7,3.4378]
[1756572948944,3.2078,4367.7,4366.7,3.4378]
[1756572949146,3.43678001,4367.7,4366.7,3.4378]
[1756572949346,0.85768468,4367.6,4366.7,3.4378]
[1756572949546,3.43678001,4367.7,4366.7,3.4378]
[1756572949742,0.2866,4367.5,4366.7,3.4378]
[1756572950043,0.2866,4367.6,4366.7,3.4378]
[1756572950243,3.43678001,4367.7,4366.7,3.4378]
[1756572950244,3.2078,4367.7,4366.7,3.4378]
[1756572950445,0.57128743,4367.6,4366.7,3.4378]
[1756572950648,3.43678001,4367.7,4366.7,3.4378]
[1756572950842,0.2866,4367.5,4366.7,3.4378]
[1756572951042,3.2078,4367.7,4366.7,3.4378]
[1756572951237,0.57129397,4367.6,4366.7,3.4378]
[1756572951443,0.57129397,4367.5,4366.7,3.4378]
[1756572951647,0.4839,4366.8,4366.7,3.4378]
[1756572952444,0.4839,4366.8,4366.7,3.2078]
[1756572952746,0.4839,4366.3,4366.2,8.5788]
[1756572952946,0.4839,4366.3,4366.2,8.8088]
[1756572956750,0.4839,4366.3,4366.2,3.4378]
[1756572957753,0.2866,4366.3,4366.2,3.4378]
[1756572958646,3.2078,4367.2,4366.2,3.4378]
[1756572958846,0.2866,4367.0,4366.2,3.4378]
[1756572959145,0.2866,4366.9,4366.2,3.4378]
[1756572959348,0.2866,4366.8,4366.2,3.4378]
[1756572960148,0.1973,4366.8,4366.2,3.4378]
[1756572960347,3.2078,4367.2,4366.2,3.2078]
[1756572960549,0.4839,4366.3,4366.2,3.2078]
[1756572960850,0.4839,4366.3,4366.2,3.4378]
[1756572968361,0.2866,4366.3,4366.2,3.4378]
[1756572971956,0.2921,4367.1,4366.2,3.4378]
[1756572972160,0.22901,4367.1,4366.2,3.4378]
[1756572972466,3.2078,4367.2,4366.2,3.4378]
[1756572972754,0.2921,4366.9,4366.2,3.4378]
[1756572972961,0.2921,4366.8,4366.2,3.4378]
[1756572973151,0.2921,4367.1,4366.2,3.4378]
[1756572973349,0.2921,4367.0,4366.2,3.4378]
[1756572973555,0.2921,4366.9,4366.2,3.4378]
[1756572973757,0.4932,4366.9,4366.2,3.4378]
[1756572973961,0.2921,4366.8,4366.2,3.4378]
[1756572974163,0.4932,4366.8,4366.2,3.4378]
[1756572976269,0.2921,4366.7,4366.2,3.4378]
[1756572976470,3.2078,4367.2,4366.2,3.4378]
[1756572976671,0.2921,4367.1,4366.2,3.4378]
[1756572976870,3.2078,4367.2,4366.2,3.4378]
[1756572977273,0.2921,4367.1,4366.2,3.4378]
[1756572977662,3.2078,4367.2,4366.2,3.4378]
[1756572977867,0.2921,4367.1,4366.2,3.4378]
[1756572978071,3.2078,4367.2,4366.2,3.4378]
[1756572978468,0.2921,4367.1,4366.2,3.4378]
[1756572978670,3.2078,4367.2,4366.2,3.4378]
[1756572978865,0.2921,4367.1,4366.2,3.4378]
[1756572979070,3.2078,4367.2,4366.2,3.4378]
[1756572979772,0.2921,4367.1,4366.2,3.4378]
[1756572980370,3.2078,4367.2,4366.2,3.4378]
[1756572980871,1.22651509,4368.2,4366.2,3.4378]
[1756572980872,3.2078,4367.7,4366.2,3.4378]
[1756572981071,0.2921,4367.5,4366.2,3.4378]
[1756572981272,0.2921,4367.3,4366.2,3.4378]
[1756572981473,3.2078,4367.7,4366.2,3.4378]
[1756572981674,0.2921,4367.5,4366.2,3.4378]
[1756572981872,0.2921,4367.3,4366.2,3.4378]
[1756572982067,0.229,4367.5,4366.2,3.4378]
[1756572982375,0.57219995,4367.4,4366.2,3.4378]
[1756572982573,0.57219995,4367.3,4366.2,3.4378]
[1756572982776,0.57219995,4367.2,4366.2,3.4378]
[1756572983075,0.2921,4367.0,4366.2,3.4378]
[1756572983375,0.2921,4367.5,4366.2,3.4378]
[1756572983674,0.2921,4367.3,4366.2,3.4378]
[1756572983877,0.57226656,4367.2,4366.2,3.4378]
[1756572984075,0.4932,4366.3,4366.2,3.2078]
[1756572984271,0.4932,4366.3,4366.2,3.4378]
[1756572984473,0.4932,4366.3,4365.7,5.26643334]
[1756572984774,0.4932,4365.8,4365.7,3.2078]
[1756572984975,0.4932,4365.8,4365.7,3.4378]
[1756572985968,0.4932,4365.8,4365.7,3.2078]
[1756572986174,0.4932,4365.8,4365.7,3.4378]
[1756572988374,0.4932,4365.8,4365.7,3.2078]
[1756572988574,0.4932,4365.8,4365.7,3.4378]
[1756572990878,0.4932,4365.8,4365.7,0.23]
[1756572991281,0.2921,4365.7,4365.0,3.2078]
[1756572991574,0.2011,4365.2,4365.1,0.23]
[1756572991769,0.2921,4365.1,4365.0,3.2078]
[1756572991974,0.2011,4365.1,4365.0,0.23]
[1756572992478,0.4932,4365.1,4365.0,0.23]
[1756572994882,0.2921,4364.5,4364.1,0.10540426]
[1756572995080,0.4932,4364.2,4364.1,0.10540426]
[1756572995276,0.4932,4364.2,4364.1,0.33540426]
[1756572997080,0.2921,4364.2,4364.1,0.33540426]
[1756572997285,0.2954,4364.9,4364.1,4.33540426]
[1756572997583,0.2954,4364.8,4364.4,3.2078]
[1756572997775,0.2954,4364.7,4364.5,0.23]
[1756572998781,0.2954,4365.5,4364.5,0.23]
[1756572998973,0.52449001,4365.5,4364.5,0.23]
[1756572999172,0.2291,4365.4,4364.5,0.23]
[1756572999373,0.2954,4365.5,4364.5,0.23]
[1756572999573,0.52449001,4365.5,4364.5,0.23]
[1756572999775,0.2291,4365.4,4364.5,0.23]
[1756572999974,0.2954,4365.5,4364.5,0.23]
[1756573000176,0.52449001,4365.5,4364.5,0.23]
[1756573000379,0.2291,4365.4,4364.5,0.23]
[1756573000581,0.2954,4365.3,4364.5,0.23]
[1756573001891,0.4825,4364.6,4364.5,0.23]
[1756573002388,0.2954,4364.5,4364.4,3.2078]
[1756573002583,0.2954,4364.5,4364.4,3.4378]
[1756573002584,0.4825,4364.5,4364.4,3.4378]
[1756573005590,0.4825,4364.5,4364.4,3.2078]
[1756573005791,0.4825,4364.5,4364.4,3.4378]
[1756573011494,0.4825,4364.5,4364.4,3.2078]
[1756573011695,0.4825,4364.5,4364.4,3.4378]
[1756573014799,0.2954,4365.5,4364.4,3.4378]
[1756573014990,0.2954,4365.4,4364.4,3.4378]
[1756573015189,0.2291,4365.4,4364.4,3.4378]
[1756573015386,3.2078,4365.6,4364.4,3.4378]
[1756573015592,0.2954,4365.4,4364.4,3.4378]
[1756573015791,0.2954,4365.2,4364.4,3.4378]
[1756573016094,0.2291,4365.5,4364.4,3.4378]
[1756573016294,0.2954,4365.3,4364.4,3.4378]
[1756573016496,0.2291,4365.4,4364.4,3.4378]
[1756573016696,0.1871,4365.2,4364.4,3.4378]
[1756573016894,0.2954,4365.5,4364.5,0.23]
[1756573017199,0.4825,4364.6,4364.5,0.23]
[1756573018698,0.1871,4364.6,4364.4,3.2078]
[1756573018893,0.4825,4364.6,4364.5,0.23]
[1756573020700,0.2954,4365.5,4364.5,0.23]
[1756573020904,0.2954,4365.3,4364.5,0.23]
[1756573021401,0.4825,4365.3,4364.5,0.23]
[1756573030301,0.1925,4364.5,4364.4,3.2078]
[1756573030507,0.4934,4364.5,4364.4,0.23]
[1756573033204,0.4934,4364.5,4364.4,3.4378]
[1756573034311,0.3009,4365.5,4364.4,3.4378]
[1756573034504,0.57504028,4365.4,4364.4,3.4378]
[1756573034704,0.57504028,4365.3,4364.4,3.4378]
[1756573034906,0.3009,4365.5,4364.4,3.4378]
[1756573035110,0.3009,4365.3,4364.4,3.4378]
[1756573035311,0.2291,4365.4,4364.4,3.4378]
[1756573035511,0.3009,4365.2,4364.4,3.4378]
[1756573035811,0.2291,4365.5,4364.4,3.4378]
[1756573036010,0.3009,4365.3,4364.4,3.4378]
[1756573036404,3.2078,4365.6,4364.4,3.4378]
[1756573036605,0.80409105,4365.5,4364.4,3.4378]
[1756573036904,0.80409105,4365.4,4364.4,3.4378]
[1756573037109,0.3009,4365.2,4364.4,3.4378]
[1756573037310,0.2291,4365.5,4364.4,3.4378]
[1756573037505,0.3009,4365.3,4364.4,3.4378]
[1756573037710,0.2291,4365.5,4364.4,3.4378]
[1756573038004,0.57491442,4365.4,4364.4,3.4378]
[1756573038202,0.3009,4365.2,4364.4,3.4378]
[1756573038407,0.2291,4365.4,4364.4,3.4378]
[1756573038613,0.1925,4364.5,4364.4,3.4378]
[1756573038914,0.4934,4364.5,4364.4,3.4378]
[1756573041909,0.3009,4365.5,4364.4,3.4378]
[1756573042114,0.57493715,4365.4,4364.4,3.4378]
[1756573042314,0.3009,4365.2,4364.4,3.4378]
[1756573042608,3.2078,4365.6,4364.4,3.4378]
[1756573042813,0.57496372,4365.5,4364.4,3.4378]
[1756573043014,0.80406372,4365.4,4364.4,3.4378]
[1756573043315,0.1925,4365.1,4364.4,3.4378]
[1756573043610,0.2291,4365.5,4364.4,3.4378]
[1756573043815,0.80411791,4365.4,4364.4,3.4378]
[1756573044113,0.57501791,4365.3,4364.4,3.4378]
[1756573044316,0.2291,4365.5,4364.4,3.4378]
[1756573044509,0.3009,4365.3,4364.4,3.4378]
[1756573044709,0.3009,4365.4,4364.4,3.4378]
[1756573044911,0.3009,4365.2,4364.4,3.4378]
[1756573045109,0.2291,4365.5,4364.4,3.4378]
[1756573045314,0.57506525,4365.4,4364.4,3.4378]
[1756573045515,0.3009,4365.2,4364.4,3.4378]
[1756573045709,0.3009,4365.4,4364.4,3.4378]
[1756573046013,0.3009,4365.2,4364.4,3.4378]
[1756573046214,0.2291,4365.4,4364.4,3.4378]
[1756573046415,0.3009,4365.2,4364.4,3.4378]
[1756573046613,0.2291,4365.5,4364.4,3.4378]
[1756573046810,0.80426769,4365.4,4364.4,3.4378]
[1756573047016,0.3009,4365.2,4364.4,3.4378]
[1756573047214,0.3009,4365.4,4364.4,3.2078]
[1756573047410,0.4934,4364.6,4364.5,0.23]
[1756573053926,0.1925,4364.6,4364.4,3.2078]
[1756573054120,0.4934,4364.6,4364.5,0.23]
[1756573054729,0.1925,4364.6,4364.4,3.2078]
[1756573054915,0.4934,4364.6,4364.5,0.23]
[1756573062930,0.4934,4364.6,4364.1,0.10540426]
[1756573063126,0.4934,4364.6,4364.2,0.23]
[1756573063523,0.4934,4364.6,4364.1,0.10540426]
[1756573063727,0.4934,4364.6,4364.2,0.23]
[1756573066633,0.72253,4364.6,4364.2,0.23]
[1756573066835,0.4934,4364.6,4364.2,0.23]
[1756573067034,0.4934,4364.6,4364.1,0.10540426]
[1756573067435,0.1882,4364.2,4364.1,0.10540426]
[1756573067637,0.4919,4364.2,4364.1,0.10540426]
[1756573078441,0.3037,4364.9,4364.1,0.10540426]
[1756573079239,0.1882,4364.2,4364.1,0.10540426]
[1756573079440,0.4919,4364.2,4364.1,0.10540426]
[1756573081735,0.3037,4364.1,4363.4,5.26643334]
[1756573082039,0.4919,4363.5,4363.3,0.23]
[1756573082841,0.1882,4362.9,4362.8,3.2078]
[1756573083042,0.4919,4362.9,4362.8,3.4378]
[1756573094853,0.4864,4363.9,4362.8,7.66701]
[1756573095048,3.2078,4364.5,4362.9,3.2078]
[1756573095350,0.2863,4363.5,4363.4,3.2078]
[1756573095548,0.4864,4363.5,4363.4,3.4378]
[1756573095747,0.4864,4363.5,4363.4,3.2078]
[1756573095946,0.4864,4363.5,4363.4,3.4378]
[1756573097346,0.4864,4363.5,4363.4,3.2078]
[1756573097544,0.4864,4363.5,4363.4,3.4378]
[1756573101153,0.4864,4363.5,4363.4,3.2078]
[1756573101347,0.4864,4363.5,4363.4,3.4378]
[1756573101548,0.4864,4363.5,4363.4,3.2078]
[1756573101853,0.4864,4363.5,4363.4,3.4378]
[1756573104054,0.2863,4363.5,4363.4,3.4378]
[1756573104449,0.4864,4363.5,4363.4,3.4378]
[1756573105763,0.2863,4364.4,4363.4,3.4378]
[1756573105963,0.2863,4364.2,4363.4,3.4378]
[1756573106163,0.22915001,4364.3,4363.4,3.4378]
[1756573106359,3.2078,4364.5,4363.4,3.4378]
[1756573106562,0.80173501,4364.4,4363.4,3.4378]
[1756573106762,0.2863,4364.2,4363.4,3.4378]
[1756573107163,0.22916,4364.1,4363.4,3.4378]
[1756573107467,0.22915001,4364.4,4363.4,3.4378]
[1756573107662,0.57264534,4364.3,4363.4,3.4378]
[1756573107869,0.22915001,4364.3,4363.4,3.4378]
[1756573108066,0.22916,4364.2,4363.4,3.4378]
[1756573108266,3.2078,4364.5,4363.4,3.4378]
[1756573108460,0.80188085,4364.4,4363.4,3.4378]
[1756573108661,0.80188085,4364.3,4363.4,3.4378]
[1756573108869,3.2078,4364.5,4363.4,3.4378]
[1756573109167,0.80188086,4364.4,4363.4,3.4378]
[1756573109367,0.80188086,4364.3,4363.4,3.4378]
[1756573109661,0.2863,4364.0,4363.4,3.4378]
[1756573109868,0.4864,4364.0,4363.4,3.4378]
[1756573111664,0.2863,4363.9,4363.4,3.4378]
[1756573111864,0.2001,4363.9,4363.4,3.4378]
[1756573112068,0.2863,4363.8,4363.4,3.4378]
[1756573112256,0.2863,4363.8,4362.8,0.41254]
[1756573112257,0.2001,4363.5,4362.8,3.2078]
[1756573112457,0.2001,4363.5,4362.8,3.4378]
[1756573112458,0.2001,4363.4,4362.8,3.4378]
[1756573112765,0.2001,4363.3,4362.8,3.4378]
[1756573112962,0.2863,4363.2,4362.8,3.4378]
[1756573113167,3.2078,4363.8,4362.8,3.4378]
[1756573113369,0.2863,4363.6,4362.8,3.4378]
[1756573113669,3.2078,4363.8,4362.8,3.4378]
[1756573113867,0.2863,4363.6,4362.8,3.4378]
[1756573114060,0.4864,4363.5,4362.8,3.4378]
[1756573114872,0.4864,4363.4,4362.8,3.4378]
[1756573115073,0.2863,4363.3,4362.8,3.4378]
[1756573115269,3.2078,4363.8,4362.8,3.4378]
[1756573115571,0.2863,4363.6,4362.8,3.4378]
[1756573115771,3.2078,4363.8,4362.8,3.4378]
[1756573115973,0.2863,4363.6,4362.8,3.4378]
[1756573116166,0.2863,4363.7,4362.8,3.4378]
[1756573116367,3.2078,4363.8,4362.8,3.4378]
[1756573116664,0.2001,4363.6,4362.8,3.4378]
[1756573116864,0.4864,4363.4,4362.8,3.4378]
[1756573117874,0.2001,4363.4,4362.8,3.4378]
[1756573118074,3.2078,4363.8,4362.3,3.2078]
[1756573118373,0.2993,4363.6,4362.3,3.437]
[1756573118567,0.2993,4363.7,4362.4,0.4602]
[1756573118768,0.2993,4363.5,4362.4,0.4602]
[1756573118974,0.2993,4363.5,4362.5,0.22919]
[1756573119367,0.2993,4363.5,4362.6,0.2292]
[1756573119567,0.2993,4363.7,4362.7,0.231]
[1756573119771,0.2993,4363.5,4362.7,0.231]
[1756573120676,3.2078,4363.8,4362.3,3.2078]
[1756573120876,0.2993,4363.6,4362.4,0.4602]
[1756573121069,0.2993,4363.7,4362.4,0.4602]
[1756573121270,0.2993,4363.5,4362.5,0.2292]
[1756573132686,0.2993,4363.5,4362.4,0.231]
[1756573133079,0.2993,4363.5,4362.5,0.2292]
[1756573134286,0.5054,4362.7,4362.6,0.231]
[1756573134486,0.2993,4362.7,4362.6,0.231]
[1756573135581,0.2993,4362.6,4362.3,3.2078]
[1756573135883,1.22651509,4364.5,4362.3,3.2078]
[1756573135884,0.2993,4363.3,4362.4,0.231]
[1756573141682,0.2993,4363.3,4362.3,3.2078]
[1756573141683,0.2061,4362.6,4362.5,0.231]
[1756573141884,0.2993,4362.6,4362.5,0.231]
[1756573143588,0.2993,4363.3,4362.5,0.231]
[1756573145989,0.5054,4363.0,4362.9,3.2078]
[1756573146290,0.5054,4363.0,4362.9,3.4388]
[1756573149285,0.5054,4363.0,4362.9,3.2078]
[1756573149488,0.5054,4363.0,4362.9,3.4388]
[1756573157496,0.2889,4363.9,4362.9,3.4388]
[1756573157696,0.2889,4363.8,4363.4,3.2078]
[1756573157893,0.2001,4363.6,4363.5,0.231]
[1756573158090,0.489,4363.6,4363.5,0.231]
[1756573204539,0.294,4364.4,4363.7,0.41246]
[1756573204744,0.294,4364.6,4364.2,2.05863334]
[1756573204944,0.2073,4364.6,4364.3,2.05863334]
[1756573205139,3.2078,4366.4,4364.4,0.23]
[1756573205140,0.2073,4364.5,4364.4,0.23]
[1756573205346,0.5013,4364.5,4364.4,0.23]
[1756573205847,0.5013,4364.0,4363.9,33.009]
[1756573206040,0.5013,4364.0,4363.9,33.239]
[1756573206349,0.2073,4363.5,4362.9,5.26643334]
[1756573206534,0.5013,4363.1,4363.0,0.727]
[1756573207139,0.5013,4363.1,4363.0,0.728]
[1756573208546,0.4949,4362.6,4362.5,33.008]
[1756573208733,0.4949,4362.6,4362.5,33.239]
[1756573209344,0.4949,4362.6,4362.5,33.525]
[1756573210241,0.69477055,4362.6,4362.5,33.525]
[1756573210942,0.19987055,4362.6,4362.5,33.525]
[1756573211149,0.19987055,4362.6,4362.5,4.517]
[1756573211347,0.19987055,4362.6,4362.5,4.707]
[1756573211545,0.293,4364.4,4362.5,4.65021999]
[1756573211749,0.19981347,4364.3,4363.4,3.2078]
[1756573211944,0.4949,4363.5,4363.4,0.1572]
[1756573212145,0.4949,4363.5,4363.4,0.3882]
[1756573212744,0.4949,4363.5,4363.4,0.231]
[1756573215145,0.4949,4362.9,4362.8,3.2078]
[1756573215556,0.4949,4362.9,4362.8,3.4388]
[1756573215851,0.4949,4362.9,4362.8,3.6942]
[1756573217754,0.4949,4362.9,4362.8,3.2078]
[1756573217956,0.4949,4362.9,4362.8,0.231]
[1756573220153,0.4949,4362.9,4362.8,0.4864]
[1756573224860,0.4949,4362.9,4362.8,0.231]
[1756573229657,0.2019,4362.9,4362.8,0.231]
[1756573229964,0.4949,4362.9,4362.8,0.231]
[1756573238866,3.2078,4363.3,4362.7,0.231]
[1756573238867,0.5046,4362.8,4362.7,0.231]
[1756573239660,0.207,4362.8,4362.3,3.2078]
[1756573239862,0.207,4362.4,4362.3,3.2078]
[1756573240063,0.69374791,4362.4,4362.3,3.4388]
[1756573240366,0.69374791,4362.4,4362.3,3.6933]
[1756573241767,0.6937429,4362.4,4362.3,3.6933]
[1756573247163,0.1891429,4362.4,4362.3,3.6933]
[1756573248266,0.4867429,4362.4,4362.3,3.6933]
[1756573248872,0.6937429,4362.4,4362.3,3.4623]
[1756573249063,0.6937429,4362.4,4362.3,3.6923]
[1756573249770,0.6937429,4362.4,4362.3,3.4623]
[1756573250071,0.6937429,4362.4,4362.3,3.5944]
[1756573250368,0.6937429,4362.4,4362.3,3.6923]
[1756573252167,0.5046,4362.4,4362.3,3.6923]
[1756573252373,0.6938388,4362.4,4362.3,3.6923]
[1756573255466,0.6938388,4362.4,4362.3,3.4378]
[1756573258180,0.6938388,4362.4,4362.3,3.5944]
[1756573258480,0.6938388,4362.4,4362.3,3.6923]
[1756573259175,0.6938388,4362.4,4362.3,3.4623]
[1756573259376,0.6938388,4362.4,4362.3,3.6923]
[1756573260880,0.6938388,4362.4,4362.3,0.4845]
[1756573261577,0.6939303,4362.4,4362.3,0.4845]
[1756573261973,0.1893303,4362.4,4362.3,0.4845]
[1756573262573,0.4869303,4362.4,4362.3,0.4845]
[1756573262772,0.1893303,4362.4,4362.3,0.4845]
[1756573263480,0.4869303,4362.4,4362.3,0.4845]
[1756573264376,0.6939303,4362.4,4362.3,0.4845]
[1756573270187,0.5046,4362.4,4362.3,0.4845]
[1756573270686,0.5187,4362.4,4362.3,0.23]
[1756573271788,0.5187,4362.4,4362.3,0.3279]
[1756573272286,3.2078,4363.3,4362.3,0.3866]
[1756573272486,0.3117,4363.1,4362.4,0.0979]
[1756573272787,0.4996,4362.7,4362.6,0.2545]
[1756573274388,0.4996,4362.7,4362.6,3.4623]
[1756573274586,0.3117,4363.7,4363.0,0.0979]
[1756573274789,0.4996,4363.2,4363.1,0.4845]
[1756573275391,0.3117,4363.2,4363.1,0.4845]
[1756573275590,0.3117,4363.2,4363.1,3.6923]
[1756573275886,0.3117,4364.2,4363.2,0.0979]
[1756573276082,0.1879,4364.1,4364.0,0.2545]
[1756573276281,3.2078,4364.8,4364.1,0.0979]
[1756573276687,0.4996,4364.7,4364.6,0.2545]
[1756573276886,0.4996,4364.7,4364.6,0.4845]